bitfinex/quotes_BTCUSD_20240730
["timestamp","ask_amount","ask_price","bid_price","bid_amount"]
[1722309810604,0.1123191,66671.0,66670.0,0.119994]
[1722309810810,0.12040627,66671.0,66670.0,0.359982]
[1722309810963,0.09794093,66671.0,66670.0,0.59997]
[1722309811184,0.00808716,66671.0,66670.0,0.59997]
[1722309811457,0.09794093,66671.0,66670.0,0.736567]
[1722309811642,0.00808716,66671.0,66670.0,0.736567]
[1722309811835,0.11231911,66673.0,66672.0,0.11999]
[1722309812044,0.01116244,66674.0,66673.0,0.119988]
[1722309812251,0.03313069,66674.0,66673.0,0.119988]
[1722309812450,0.03313069,66674.0,66673.0,0.359965]
[1722309812650,0.03013069,66674.0,66673.0,0.119988]
[1722309812849,0.03013069,66674.0,66673.0,0.359965]
[1722309813372,0.05365584,66674.0,66673.0,0.359965]
[1722309813670,0.03013069,66674.0,66673.0,0.359965]
[1722309813870,0.03113069,66674.0,66673.0,0.359965]
[1722309814626,0.03113069,66674.0,66673.0,0.4199599]
[1722309815264,0.03113069,66674.0,66673.0,0.359965]
[1722309816651,0.03213069,66674.0,66673.0,0.359965]
[1722309816836,0.03213069,66674.0,66671.0,0.119991]
[1722309817039,0.02196825,66673.0,66671.0,0.119991]
[1722309817385,0.02196825,66673.0,66665.0,0.0766]
[1722309817587,0.08987517,66666.0,66664.0,0.120004]
[1722309817926,0.08987582,66665.0,66664.0,0.120004]
[1722309818157,0.08987582,66665.0,66664.0,0.360013]
[1722309818273,0.11234396,66666.0,66662.0,0.240016]
[1722309818474,0.06740538,66663.0,66662.0,0.360024]
[1722309819723,0.06740538,66663.0,66662.0,0.60004]
[1722309821322,0.09093246,66663.0,66662.0,0.60004]
[1722309821602,0.09901246,66663.0,66662.0,0.60004]
[1722309821719,0.03160708,66663.0,66662.0,0.60004]
[1722309821919,0.03316128,66663.0,66662.0,0.60004]
[1722309822320,0.03160708,66663.0,66662.0,0.60004]
[1722309822741,0.03160708,66663.0,66662.0,0.840056]
[1722309822742,0.03316128,66663.0,66662.0,0.840056]
[1722309822946,0.03316128,66663.0,66662.0,0.852056]
[1722309823148,0.03160708,66663.0,66662.0,0.852056]
[1722309823349,0.02352708,66663.0,66662.0,0.852056]
[1722309823950,0.0015542,66665.0,66664.0,0.600022]
[1722309824351,0.11386289,66671.0,66670.0,0.119994]
[1722309824580,0.13723952,66671.0,66670.0,0.119994]
[1722309824753,0.13568532,66671.0,66670.0,0.119994]
[1722309824950,0.13669645,66671.0,66670.0,0.119994]
[1722309825648,0.02337663,66671.0,66670.0,0.119994]
[1722309825875,0.02448888,66671.0,66670.0,0.119994]
[1722309826285,0.13569402,66671.0,66669.0,0.119994]
[1722309826483,0.13569402,66671.0,66668.0,0.119997]
[1722309826484,0.0015542,66669.0,66668.0,0.119997]
[1722309826922,0.02508041,66669.0,66668.0,0.119997]
[1722309827071,0.15952505,66669.0,66668.0,0.119997]
[1722309828107,0.13599884,66669.0,66668.0,0.119997]
[1722309828513,0.02367974,66669.0,66668.0,0.359992]
[1722309828657,0.00113491,66671.0,66669.0,0.119995]
[1722309828858,0.02332832,66670.0,66669.0,0.119995]
[1722309829932,0.02332832,66670.0,66669.0,0.121995]
[1722309830135,0.02332832,66670.0,66669.0,0.119995]
[1722309830536,0.0015542,66671.0,66670.0,0.119994]
[1722309830747,0.02484347,66671.0,66670.0,0.119994]
[1722309831036,0.02328927,66671.0,66670.0,0.359982]
[1722309831216,0.02484347,66671.0,66670.0,0.359982]
[1722309831381,0.04836938,66671.0,66670.0,0.359982]
[1722309831787,0.04681518,66671.0,66670.0,0.359982]
[1722309832114,0.04681518,66671.0,66670.0,0.6603677]
[1722309832343,0.04681518,66671.0,66670.0,0.7992677]
[1722309832543,0.02328927,66671.0,66670.0,0.7372677]
[1722309832768,0.15980524,66673.0,66672.0,0.35997]
[1722309833042,0.02495088,66673.0,66672.0,0.35997]
[1722309833274,0.02339668,66673.0,66672.0,0.59995]
[1722309833691,0.02495088,66673.0,66672.0,0.59995]
[1722309833955,0.02339668,66673.0,66672.0,0.59995]
[1722309834203,0.02539668,66673.0,66672.0,0.59995]
[1722309835598,0.04892193,66673.0,66672.0,0.66225]
[1722309836002,0.02539668,66673.0,66672.0,1.13086304]
[1722309836166,0.02539668,66673.0,66672.0,1.4827463]
[1722309836167,0.002,66673.0,66672.0,1.4827463]
[1722309836365,0.002,66673.0,66672.0,1.37084304]
[1722309836590,0.002,66673.0,66672.0,1.38084304]
[1722309836792,0.002,66673.0,66672.0,1.58272635]
[1722309837011,0.002,66673.0,66672.0,1.70572635]
[1722309837453,0.00716244,66674.0,66673.0,1.079896]
[1722309837662,0.00716244,66674.0,66673.0,1.50571235]
[1722309837875,0.00716244,66674.0,66673.0,1.60571235]
[1722309838314,0.00716244,66674.0,66673.0,1.61571235]
[1722309838560,0.00716244,66674.0,66673.0,1.60571235]
[1722309838785,0.00716244,66674.0,66673.0,1.61371235]
[1722309839103,0.03068379,66674.0,66673.0,1.61371235]
[1722309839306,0.03068379,66674.0,66673.0,1.72371235]
[1722309839831,0.03068379,66674.0,66673.0,1.72545992]
[1722309840354,0.00716244,66674.0,66673.0,1.71346032]
[1722309840567,0.00716244,66674.0,66673.0,1.72346032]
[1722309840723,0.00716244,66674.0,66673.0,1.72546032]
[1722309841860,0.00716244,66674.0,66673.0,1.71346032]
[1722309842089,0.00716244,66674.0,66673.0,1.72546032]
[1722309842303,0.00716244,66674.0,66673.0,1.73858792]
[1722309842528,0.00716244,66674.0,66673.0,1.62682904]
[1722309842925,0.00716244,66674.0,66673.0,1.64682904]
[1722309843170,0.00716244,66674.0,66673.0,1.62482904]
[1722309843367,0.00716244,66674.0,66673.0,1.64482904]
[1722309843570,0.03068329,66674.0,66673.0,1.88480604]
[1722309843772,0.00716244,66674.0,66673.0,2.026575]
[1722309844561,0.00716244,66674.0,66673.0,2.015575]
[1722309844766,0.00716244,66674.0,66673.0,1.775598]
[1722309845094,0.00716244,66674.0,66673.0,1.789598]
[1722309845248,0.00716244,66674.0,66673.0,1.78973069]
[1722309845855,0.00716244,66674.0,66673.0,1.77573069]
[1722309846328,0.00716244,66674.0,66673.0,1.78973069]
[1722309846534,0.00716244,66674.0,66673.0,1.67787904]
[1722309846863,0.00716244,66674.0,66673.0,1.66987904]
[1722309847069,0.03068308,66674.0,66673.0,1.66987904]
[1722309847488,0.03068308,66674.0,66673.0,1.65587904]
[1722309848068,0.03068308,66674.0,66673.0,1.90985604]
[1722309848278,0.03068308,66674.0,66673.0,2.02158002]
[1722309848279,0.00716244,66674.0,66673.0,2.02158002]
[1722309848478,0.00716244,66674.0,66673.0,1.87980604]
[1722309848678,0.12088459,66694.0,66693.0,0.197952]
[1722309848679,0.00064954,66694.0,66693.0,0.197952]
[1722309848864,0.00064954,66694.0,66693.0,0.86428024]
[1722309849065,0.0090227,66694.0,66693.0,0.86428024]
[1722309849375,0.0090227,66694.0,66693.0,1.10418524]
[1722309849376,0.00064954,66694.0,66693.0,1.10418524]
[1722309851297,0.00064954,66694.0,66693.0,1.11118524]
[1722309851502,0.02416631,66694.0,66693.0,1.11118524]
[1722309851738,0.02416631,66694.0,66693.0,1.35109024]
[1722309851944,0.02416631,66694.0,66693.0,1.53999024]
[1722309852307,0.00064954,66694.0,66693.0,1.53999024]
[1722309852503,0.00064954,66694.0,66693.0,1.54999024]
[1722309852945,0.00064954,66694.0,66693.0,1.56199024]
[1722309853158,0.00064954,66694.0,66693.0,1.56399024]
[1722309853358,0.00064954,66694.0,66693.0,1.55199024]
[1722309854227,0.00064954,66694.0,66693.0,1.47226661]
[1722309854464,0.00064954,66694.0,66693.0,1.23236161]
[1722309856051,0.0241646,66694.0,66693.0,1.23236161]
[1722309856257,0.00064954,66694.0,66693.0,1.54976661]
[1722309856437,0.00064954,66694.0,66693.0,1.56076661]
[1722309857759,0.00064954,66694.0,66693.0,1.32086161]
[1722309858390,0.00064954,66694.0,66693.0,1.25536161]
[1722309858586,0.00064954,66694.0,66693.0,1.15436161]
[1722309859159,0.14524954,66694.0,66693.0,0.138952]
[1722309859369,0.14524954,66694.0,66693.0,0.378857]
[1722309859524,0.17727793,66694.0,66693.0,0.378857]
[1722309860830,0.15376094,66694.0,66693.0,0.378857]
[1722309862651,0.07086094,66694.0,66693.0,0.618762]
[1722309863002,0.06234954,66694.0,66693.0,0.618762]
[1722309863441,0.00064954,66694.0,66693.0,0.695362]
[1722309863824,0.00064954,66694.0,66693.0,1.08590004]
[1722309864028,0.02416602,66694.0,66693.0,1.08590004]
[1722309864353,0.00064954,66694.0,66693.0,1.08590004]
[1722309865196,0.00064954,66694.0,66693.0,0.84599504]
[1722309865474,0.00064954,66694.0,66693.0,0.618762]
[1722309865475,0.06224954,66694.0,66693.0,0.618762]
[1722309867715,0.02416665,66694.0,66693.0,0.618762]
[1722309867917,0.02416665,66694.0,66693.0,0.693962]
[1722309867918,0.00064954,66694.0,66693.0,0.693962]
[1722309869455,0.00064954,66694.0,66693.0,0.933867]
[1722309869646,0.00064954,66694.0,66693.0,1.08450004]
[1722309871063,0.00064954,66694.0,66693.0,1.32440504]
[1722309871226,0.00064954,66694.0,66693.0,1.51150504]
[1722309872773,0.00064954,66694.0,66693.0,1.62150504]
[1722309872974,0.00064954,66694.0,66693.0,1.72256727]
[1722309874307,0.00064954,66694.0,66693.0,1.72274286]
[1722309875099,0.00064954,66694.0,66693.0,1.61150504]
[1722309875510,0.00064954,66694.0,66693.0,1.72270858]
[1722309875711,0.02416417,66694.0,66693.0,1.72270858]
[1722309876119,0.00064954,66694.0,66693.0,1.72270858]
[1722309877471,0.00064954,66694.0,66693.0,1.72270325]
[1722309877591,5.4e-07,66694.0,66693.0,2.20680782]
[1722309877797,0.00101104,66703.0,66702.0,0.329936]
[1722309878033,0.00101104,66703.0,66702.0,1.55071082]
[1722309878233,0.00101104,66703.0,66702.0,2.03045482]
[1722309878467,0.00101104,66703.0,66702.0,2.27032682]
[1722309878670,0.00101104,66703.0,66702.0,2.29032682]
[1722309879163,0.00101104,66703.0,66702.0,2.29132682]
[1722309879344,0.00101104,66703.0,66702.0,2.27032682]
[1722309879345,0.0245227,66703.0,66702.0,2.27032682]
[1722309879544,0.0245227,66703.0,66702.0,2.03045482]
[1722309879918,0.00101104,66703.0,66702.0,2.03045482]
[1722309880575,0.00101104,66703.0,66702.0,2.0311431]
[1722309881194,0.00101104,66703.0,66702.0,2.0451431]
[1722309881401,0.00101104,66703.0,66702.0,2.0311431]
[1722309881742,0.00101104,66703.0,66702.0,2.0451431]
[1722309881948,0.00101104,66703.0,66702.0,2.0671431]
[1722309883286,0.00101104,66703.0,66702.0,2.0451431]
[1722309883507,0.00101104,66703.0,66702.0,2.04496305]
[1722309883811,0.00101104,66703.0,66702.0,1.93325704]
[1722309883988,0.00101104,66703.0,66702.0,1.92325704]
[1722309884737,0.00101104,66703.0,66702.0,1.85135704]
[1722309886343,0.00101104,66703.0,66702.0,1.87435704]
[1722309886571,0.00101104,66703.0,66702.0,1.88328067]
[1722309886800,0.00101104,66703.0,66702.0,1.70418067]
[1722309887497,0.02452219,66703.0,66702.0,1.70418067]
[1722309887635,0.00101104,66703.0,66702.0,1.84548067]
[1722309888019,0.00101104,66703.0,66702.0,1.78048067]
[1722309889181,0.00101104,66703.0,66702.0,1.78893067]
[1722309890895,0.02452219,66703.0,66702.0,1.78893067]
[1722309892076,0.00101104,66703.0,66702.0,1.78893067]
[1722309892804,0.06191104,66703.0,66702.0,1.34975867]
[1722309892946,0.06191104,66703.0,66702.0,1.10988667]
[1722309893346,0.06191104,66703.0,66702.0,1.10143667]
[1722309895128,0.00101104,66703.0,66702.0,1.10143667]
[1722309895329,0.00101104,66703.0,66702.0,1.51630867]
[1722309895330,0.0245236,66703.0,66702.0,1.51630867]
[1722309895536,0.0245236,66703.0,66702.0,1.53930867]
[1722309896153,0.0245236,66703.0,66702.0,1.51130867]
[1722309896490,0.0245236,66703.0,66702.0,1.51630867]
[1722309896691,0.0245236,66703.0,66702.0,1.52530867]
[1722309899346,0.0245236,66703.0,66702.0,1.98670855]
[1722309900067,0.0245236,66703.0,66702.0,1.87018067]
[1722309900371,0.0245236,66703.0,66702.0,1.98182343]
[1722309900544,0.0245236,66703.0,66702.0,1.99582343]
[1722309900946,0.00101104,66703.0,66702.0,2.01582343]
[1722309901127,0.00101104,66703.0,66702.0,2.01782343]
[1722309901334,0.00101104,66703.0,66702.0,2.01582343]
[1722309901943,0.00101104,66703.0,66702.0,2.07792343]
[1722309902134,0.00101104,66703.0,66702.0,2.05592343]
[1722309902767,1e-08,66703.0,66702.0,2.07592343]
[1722309902945,1e-08,66703.0,66702.0,2.06686448]
[1722309903133,1e-08,66703.0,66702.0,2.04686448]
[1722309904025,0.023511,66703.0,66702.0,2.04686448]
[1722309904347,0.023511,66703.0,66702.0,2.03286448]
[1722309904769,0.023511,66703.0,66702.0,2.06933753]
[1722309904976,0.023511,66703.0,66702.0,2.05533553]
[1722309905192,0.023511,66703.0,66702.0,2.06933553]
[1722309905568,0.023511,66703.0,66702.0,1.95728067]
[1722309905767,0.00845,66711.0,66709.0,1.159388]
[1722309905966,0.00845,66711.0,66710.0,1.14114801]
[1722309906187,0.00845,66711.0,66710.0,1.83868001]
[1722309906385,0.00845,66711.0,66710.0,2.0755267]
[1722309906585,0.00845,66711.0,66710.0,2.0955267]
[1722309907008,0.00845,66711.0,66710.0,2.1056167]
[1722309907208,0.00845,66711.0,66710.0,1.8877727]
[1722309907549,0.00845,66711.0,66710.0,1.8002727]
[1722309907690,0.00845,66711.0,66710.0,1.75248449]
[1722309907885,0.00845,66711.0,66710.0,1.70927021]
[1722309908111,0.00845,66711.0,66710.0,1.72327021]
[1722309908308,0.00845,66711.0,66710.0,1.70927021]
[1722309908671,0.00845,66711.0,66710.0,1.56713104]
[1722309908873,0.00845,66711.0,66710.0,1.67902981]
[1722309909697,0.00845,66711.0,66710.0,1.82902981]
[1722309910127,0.00845,66711.0,66710.0,1.76412981]
[1722309910298,0.00845,66711.0,66710.0,1.77291295]
[1722309911029,0.00845,66711.0,66710.0,1.78691295]
[1722309911349,0.0015542,66724.0,66710.0,1.78691295]
[1722309911350,0.04485547,66746.0,66743.0,0.1]
[1722309911515,0.04485547,66759.0,66758.0,0.11]
[1722309911662,0.07575289,66761.0,66758.0,0.11]
[1722309911663,0.00845,66761.0,66760.0,0.359496]
[1722309912304,0.15415,66761.0,66760.0,0.119832]
[1722309912457,0.15415,66761.0,66759.0,0.119832]
[1722309912657,0.15415,66761.0,66760.0,0.119832]
[1722309912909,0.15415,66761.0,66760.0,0.62216]
[1722309913115,0.07255,66761.0,66760.0,0.482496]
[1722309913288,0.07255,66761.0,66760.0,0.87279304]
[1722309914108,0.07255,66761.0,66760.0,1.11245704]
[1722309914457,0.07255,66761.0,66760.0,0.87279304]
[1722309914582,0.07255,66761.0,66760.0,1.11245704]
[1722309914987,0.07255,66761.0,66760.0,0.87279304]
[1722309915194,0.03194257,66761.0,66760.0,0.87279304]
[1722309915398,0.03194257,66761.0,66760.0,1.11245704]
[1722309915825,0.03194257,66761.0,66760.0,0.87279304]
[1722309916184,0.03194257,66761.0,66760.0,1.11345704]
[1722309916490,0.03194257,66761.0,66760.0,0.87279304]
[1722309917553,0.03194257,66761.0,66760.0,1.13053669]
[1722309917754,0.03194257,66761.0,66760.0,0.89087269]
[1722309918401,0.03194257,66761.0,66760.0,1.13053669]
[1722309919183,0.00845,66761.0,66760.0,1.14153669]
[1722309919761,0.00845,66761.0,66760.0,1.24153669]
[1722309920485,0.00845,66761.0,66760.0,1.47020069]
[1722309920711,0.00845,66761.0,66760.0,1.23253669]
[1722309921626,0.00845,66761.0,66760.0,1.47220069]
[1722309921847,0.00845,66761.0,66760.0,1.36928385]
[1722309922048,0.00845,66770.0,66769.0,1.318434]
[1722309922249,0.00845,66770.0,66769.0,1.49206704]
[1722309922411,0.00845,66770.0,66769.0,1.59206704]
[1722309922607,0.00845,66770.0,66769.0,1.69626704]
[1722309922853,0.03193733,66770.0,66769.0,1.48653804]
[1722309923013,0.09333733,66770.0,66769.0,1.48653804]
[1722309923213,0.03193733,66770.0,66769.0,1.48653804]
[1722309923411,0.03193733,66770.0,66769.0,1.50053804]
[1722309923871,0.00845,66770.0,66769.0,1.50053804]
[1722309924269,0.00845,66770.0,66769.0,1.50953804]
[1722309925037,0.00845,66770.0,66769.0,1.75809177]
[1722309925368,0.00845,66770.0,66769.0,1.74409177]
[1722309925911,0.00845,66770.0,66769.0,1.75109177]
[1722309926066,0.00845,66770.0,66769.0,1.74409177]
[1722309926482,0.00845,66770.0,66769.0,1.75109177]
[1722309927436,0.03193784,66770.0,66769.0,1.75109177]
[1722309928531,0.03193784,66770.0,66769.0,1.50245977]
[1722309929148,0.00845,66770.0,66769.0,1.50245977]
[1722309929920,0.09015,66770.0,66769.0,1.18825977]
[1722309930246,0.09015,66770.0,66769.0,0.28637077]
[1722309930247,0.15085,66770.0,66769.0,0.28637077]
[1722309930453,0.16080265,66770.0,66769.0,0.37536973]
[1722309930884,0.16080265,66770.0,66769.0,0.007]
[1722309932162,0.30410753,66770.0,66769.0,0.007]
[1722309932326,0.78336353,66770.0,66769.0,0.007]
[1722309932560,0.78336353,66770.0,66769.0,0.75671304]
[1722309932561,0.04189353,66770.0,66769.0,0.75671304]
[1722309932763,0.04189353,66770.0,66769.0,0.98934504]
[1722309933011,0.03194088,66770.0,66769.0,0.98934504]
[1722309933167,0.03194088,66770.0,66769.0,0.99834504]
[1722309933567,0.03194088,66770.0,66769.0,1.01234504]
[1722309934386,0.03194088,66770.0,66769.0,1.01334504]
[1722309934687,0.03194088,66770.0,66769.0,1.01234504]
[1722309934889,0.03194088,66770.0,66769.0,1.01934504]
[1722309935678,0.03194088,66770.0,66769.0,1.01234504]
[1722309936187,0.03194088,66770.0,66769.0,1.02234504]
[1722309938842,0.03194088,66770.0,66769.0,1.02734504]
[1722309939436,0.03194088,66770.0,66769.0,0.015]
[1722309939437,0.17304088,66770.0,66769.0,0.015]
[1722309939643,0.18290985,66770.0,66769.0,0.015]
[1722309940047,0.30272385,66770.0,66769.0,0.015]
[1722309940258,0.54235185,66770.0,66769.0,0.01]
[1722309940554,0.19846733,66770.0,66769.0,0.023]
[1722309940801,0.31828133,66770.0,66769.0,0.023]
[1722309941177,0.0644,66769.0,66764.0,0.119824]
[1722309941571,0.00977896,66768.0,66764.0,0.119824]
[1722309941914,0.00977896,66768.0,66763.0,0.119825]
[1722309942766,0.00977896,66768.0,66760.0,0.239663]
[1722309942767,0.12959696,66768.0,66760.0,0.239663]
[1722309942969,0.0644,66767.0,66763.0,0.119826]
[1722309943290,0.0644,66767.0,66760.0,0.239663]
[1722309943291,0.0094644,66766.0,66760.0,0.239663]
[1722309943492,0.0094644,66766.0,66755.0,0.2142]
[1722309943493,0.0094644,66766.0,66761.0,0.239659]
[1722309943688,0.0094644,66766.0,66763.0,0.119826]
[1722309943911,0.0094644,66766.0,66762.0,0.239655]
[1722309944119,0.0094644,66766.0,66763.0,0.119826]
[1722309944597,0.0094644,66766.0,66755.0,0.22329269]
[1722309944992,0.0094644,66766.0,66763.0,0.119826]
[1722309945185,0.0104644,66766.0,66763.0,0.119826]
[1722309945389,0.0104644,66766.0,66761.0,0.239659]
[1722309945590,0.0094644,66766.0,66763.0,0.119825]
[1722309945706,0.0606,66764.0,66761.0,0.002]
[1722309945912,0.13594716,66764.0,66761.0,0.002]
[1722309946153,0.180428,66762.0,66761.0,0.002]
[1722309946343,0.420085,66762.0,66761.0,0.002]
[1722309946529,0.69989477,66762.0,66761.0,0.002]
[1722309946870,1.10812064,66762.0,66761.0,0.002]
[1722309947170,1.24875368,66762.0,66761.0,0.002]
[1722309947510,1.25875368,66762.0,66761.0,0.002]
[1722309948030,1.25875368,66762.0,66761.0,0.003]
[1722309948250,1.25875368,66762.0,66738.0,0.239741]
[1722309948251,0.239687,66754.0,66738.0,0.239741]
[1722309948453,0.239687,66754.0,66741.0,0.44444115]
[1722309948454,0.119858,66746.0,66741.0,0.44444115]
[1722309948650,0.0648,66745.0,66740.0,0.239735]
[1722309948871,0.0648,66745.0,66741.0,0.119864]
[1722309949207,0.0648,66745.0,66730.0,0.274235]
[1722309949208,0.00944276,66744.0,66732.0,0.239763]
[1722309949416,0.00944276,66744.0,66733.0,0.15063304]
[1722309949634,0.00944276,66744.0,66734.0,0.239756]
[1722309949841,0.00944276,66744.0,66743.0,0.119862]
[1722309950046,0.00944276,66744.0,66743.0,0.359587]
[1722309950249,0.0648,66745.0,66744.0,0.11986]
[1722309950493,0.0648,66745.0,66744.0,0.359581]
[1722309950711,0.07424276,66745.0,66744.0,0.359581]
[1722309950897,0.07624276,66745.0,66744.0,0.359581]
[1722309951109,0.07424276,66745.0,66744.0,0.359581]
[1722309951525,0.07624276,66745.0,66744.0,0.359581]
[1722309951728,0.07724276,66745.0,66744.0,0.359581]
[1722309951931,0.07724276,66745.0,66744.0,0.11986]
[1722309952283,0.07524276,66745.0,66744.0,0.359581]
[1722309952599,0.07524276,66745.0,66744.0,0.363581]
[1722309952800,0.0658,66745.0,66744.0,0.363581]
[1722309952998,0.0648,66745.0,66744.0,0.363581]
[1722309953401,0.0648,66745.0,66744.0,0.370581]
[1722309953729,0.07424276,66745.0,66744.0,0.011]
[1722309953929,0.07424276,66745.0,66744.0,0.13086]
[1722309954430,0.07424276,66745.0,66744.0,0.011]
[1722309954628,0.07424276,66745.0,66744.0,0.13086]
[1722309954834,0.07424276,66745.0,66744.0,0.370581]
[1722309955196,0.07424276,66745.0,66744.0,0.13086]
[1722309957860,0.09774226,66745.0,66744.0,0.13086]
[1722309958232,0.07424276,66745.0,66744.0,0.13086]
[1722309959042,0.07424276,66745.0,66744.0,0.011]
[1722309959245,0.07424276,66745.0,66744.0,0.13086]
[1722309961175,0.07424276,66745.0,66744.0,0.370581]
[1722309961350,0.09774193,66745.0,66744.0,0.370581]
[1722309961998,0.07424276,66745.0,66744.0,0.370581]
[1722309962192,0.07424276,66745.0,66744.0,0.13086]
[1722309962430,0.07424276,66745.0,66744.0,0.011]
[1722309962786,0.07424276,66745.0,66744.0,0.13086]
[1722309963552,0.07424276,66745.0,66744.0,0.011]
[1722309965977,0.46100954,66745.0,66744.0,0.011]
[1722309966160,0.75513776,66745.0,66744.0,0.011]
[1722309966770,0.75513776,66745.0,66744.0,0.007]
[1722309967015,0.51541976,66745.0,66744.0,0.007]
[1722309967226,0.51741976,66745.0,66744.0,0.001]
[1722309967647,0.52141976,66745.0,66744.0,0.001]
[1722309969218,0.54492124,66745.0,66744.0,0.001]
[1722309970598,0.61329623,66745.0,66744.0,0.001]
[1722309970737,0.85301423,66745.0,66744.0,0.001]
[1722309971183,0.61329623,66745.0,66744.0,0.001]
[1722309971356,0.60688325,66745.0,66744.0,0.001]
[1722309971762,0.60688309,66745.0,66744.0,0.001]
[1722309973002,0.84660109,66745.0,66744.0,0.001]
[1722309974380,1.04192705,66745.0,66744.0,0.001]
[1722309974607,0.99723413,66745.0,66744.0,0.001]
[1722309974933,0.99722065,66745.0,66744.0,0.001]
[1722309975285,1.09494159,66745.0,66744.0,0.001]
[1722309975688,1.04193443,66745.0,66744.0,0.001]
[1722309976265,1.28177834,66745.0,66744.0,0.001]
[1722309976480,1.02855886,66745.0,66744.0,0.001]
[1722309977142,1.26827686,66745.0,66744.0,0.001]
[1722309977286,1.02855886,66745.0,66744.0,0.001]
[1722309977945,0.0649,66735.0,66730.0,0.119885]
[1722309978118,0.0649,66735.0,66720.0,0.0617]
[1722309978294,0.239771,66731.0,66720.0,0.07046301]
[1722309978493,0.239771,66731.0,66719.0,0.23981]
[1722309978494,0.239787,66726.0,66719.0,0.077]
[1722309978697,0.15164716,66735.0,66719.0,0.077]
[1722309978698,0.07155572,66725.0,66719.0,0.196905]
[1722309978897,0.119897,66724.0,66719.0,0.077]
[1722309979120,0.182496,66725.0,66719.0,0.196905]
[1722309979319,0.00893258,66723.0,66719.0,0.196905]
[1722309979570,0.0626,66725.0,66719.0,0.196905]
[1722309979571,0.182495,66725.0,66719.0,0.196905]
[1722309979778,0.00893258,66722.0,66719.0,0.196905]
[1722309979980,0.02350634,66723.0,66719.0,0.077]
[1722309980184,0.00893258,66721.0,66719.0,0.077]
[1722309980349,0.0626,66725.0,66719.0,0.077]
[1722309980350,0.302391,66725.0,66719.0,0.077]
[1722309980554,0.00893258,66720.0,66719.0,0.077]
[1722309980761,0.119897,66724.0,66719.0,0.077]
[1722309980937,0.00885161,66720.0,66719.0,0.077]
[1722309981139,0.302391,66725.0,66719.0,0.077]
[1722309981332,0.00885161,66720.0,66719.0,0.077]
[1722309981579,0.302391,66725.0,66719.0,0.077]
[1722309981796,0.00885161,66720.0,66719.0,0.077]
[1722309981996,0.119899,66723.0,66719.0,0.077]
[1722309982199,0.00885161,66720.0,66719.0,0.077]
[1722309982370,0.1861059,66723.0,66719.0,0.077]
[1722309982573,0.12875561,66720.0,66713.0,0.119916]
[1722309982754,0.12875561,66720.0,66714.0,0.119913]
[1722309982755,0.119904,66720.0,66714.0,0.119913]
[1722309983115,0.12875661,66719.0,66714.0,0.119913]
[1722309983660,0.00885161,66719.0,66706.0,0.239857]
[1722309983859,0.119915,66714.0,66708.0,0.083]
[1722309984058,0.0648,66715.0,66708.0,0.083]
[1722309984267,0.00885161,66714.0,66704.0,0.083]
[1722309984453,0.119922,66710.0,66704.0,0.119931]
[1722309984654,0.0648,66712.0,66699.0,0.083]
[1722309984655,0.00883178,66709.0,66699.0,0.083]
[1722309984849,0.119932,66705.0,66699.0,0.21191485]
[1722309985105,0.00878127,66704.0,66699.0,0.20294]
[1722309985413,0.00878127,66704.0,66699.0,0.083]
[1722309985568,0.00878127,66704.0,66701.0,0.119937]
[1722309985774,0.0648,66712.0,66701.0,0.239876]
[1722309985970,0.0648,66712.0,66702.0,0.119936]
[1722309985971,0.00851403,66703.0,66702.0,0.119936]
[1722309986157,0.0648,66712.0,66709.0,0.119923]
[1722309986357,0.0648,66712.0,66700.0,0.239879]
[1722309986690,0.002,66704.0,66703.0,0.359803]
[1722309986906,0.0648,66712.0,66701.0,0.239875]
[1722309986907,0.184718,66712.0,66704.0,0.239865]
[1722309987105,0.184718,66712.0,66706.0,0.120929]
[1722309987308,0.00853241,66711.0,66709.0,0.001]
[1722309987511,0.12845241,66711.0,66709.0,0.001]
[1722309987837,0.02002524,66710.0,66709.0,0.001]
[1722309988045,0.00853241,66711.0,66709.0,0.120923]
[1722309988254,0.0718,66712.0,66709.0,0.681417]
[1722309988255,0.00852928,66710.0,66709.0,0.681417]
[1722309988416,0.00852928,66710.0,66709.0,0.201723]
[1722309988607,0.02351246,66711.0,66710.0,0.119922]
[1722309988835,0.02351246,66711.0,66709.0,0.0808]
[1722309989036,0.02351246,66711.0,66710.0,0.119922]
[1722309989438,0.02351246,66711.0,66710.0,0.359766]
[1722309989804,0.02351246,66711.0,66709.0,0.200723]
[1722309990041,0.03285371,66711.0,66709.0,0.0808]
[1722309990243,0.03985371,66711.0,66710.0,0.001]
[1722309990442,0.01634125,66711.0,66710.0,0.001]
[1722309990758,0.01634125,66711.0,66710.0,0.120922]
[1722309990970,0.01634125,66711.0,66710.0,0.001]
[1722309991168,0.15977375,66711.0,66710.0,0.001]
[1722309991688,0.15977375,66711.0,66709.0,0.001]
[1722309991897,0.16377375,66711.0,66709.0,0.001]
[1722309992047,0.15677375,66711.0,66705.0,0.11993]
[1722309992250,0.119922,66710.0,66705.0,0.11993]
[1722309992852,0.119922,66710.0,66704.0,0.201732]
[1722309993084,0.0235125,66711.0,66706.0,0.119929]
[1722309993289,0.0235125,66711.0,66704.0,0.321665]
[1722309993290,0.119922,66710.0,66704.0,0.201731]
[1722309993495,0.003,66710.0,66705.0,0.11993]
[1722309993689,0.122922,66710.0,66705.0,0.11993]
[1722309994108,0.127922,66710.0,66705.0,0.11993]
[1722309994305,0.122922,66710.0,66705.0,0.11993]
[1722309994670,0.15803998,66710.0,66704.0,0.0818]
[1722309994844,0.119924,66709.0,66704.0,0.201732]
[1722309995554,0.15503998,66710.0,66704.0,0.201732]
[1722309995754,0.0638714,66709.0,66704.0,0.201732]
[1722309995894,0.001,66709.0,66705.0,0.119931]
[1722309996300,0.001,66709.0,66704.0,0.0818]
[1722309996501,0.239833,66713.0,66704.0,0.321664]
[1722309996729,0.002,66710.0,66705.0,0.11993]
[1722309996931,0.126922,66710.0,66705.0,0.11993]
[1722309997725,0.007,66710.0,66704.0,0.201732]
[1722309997927,0.14343712,66709.0,66704.0,0.0818]
[1722309998147,0.119924,66709.0,66704.0,0.0818]
[1722309998551,0.123924,66709.0,66704.0,0.0818]
[1722309998752,0.124924,66709.0,66703.0,0.119934]
[1722309998954,0.119927,66707.0,66701.0,0.119937]